Department Family,Entity,Date,Expense Type,Expense Area,Supplier,Transaction Number,AP Amount,VAT Registration Number,Purchase Invoice Number
Department of Health,Bridgewater Community Healthcare NHS Foundation Trust,31-Oct-15,SrvcsRecd-FoundationTrust,Offender Health - St Catherines,GREATER MANCHESTER WEST MENTAL HEALTH NHS FOUNDATION TRUST,15566799,"94,436.50",654929594,20719
Department of Health,Bridgewater Community Healthcare NHS Foundation Trust,31-Oct-15,SrvcsRecd-FoundationTrust,HM Prison Healthcare,GREATER MANCHESTER WEST MENTAL HEALTH NHS FOUNDATION TRUST,15567172,"82,975.33",654929594,20005
Department of Health,Bridgewater Community Healthcare NHS Foundation Trust,31-Oct-15,SrvcsRecd-FoundationTrust,HM Prison Healthcare,GREATER MANCHESTER WEST MENTAL HEALTH NHS FOUNDATION TRUST,15567178,"53,897.42",654929594,20174
Department of Health,Bridgewater Community Healthcare NHS Foundation Trust,31-Oct-15,Other Clinical Costs,Out of Hours Medical Services,CO-OPERATIVE PHARMACY,15582578,"28,325.00",,MI00001920
Department of Health,Bridgewater Community Healthcare NHS Foundation Trust,31-Oct-15,SrvcsRecd-FoundationTrust,Estates Management,WARRINGTON & HALTON HOSPITALS NHS FOUNDATION TRUST,15582642,"25,477.75",654404741,15354826
Department of Health,Bridgewater Community Healthcare NHS Foundation Trust,31-Oct-15,OOH Comms Equip/GP Rotas,General Medical Services,DR JK AGARWALA,15587635,"32,455.80",,SEP15 2927
Department of Health,Bridgewater Community Healthcare NHS Foundation Trust,31-Oct-15,Services Received - NHSTs,Warrington- Dental,EAST CHESHIRE NHS TRUST,15660556,"148,000.00",654919892,17484113
Department of Health,Bridgewater Community Healthcare NHS Foundation Trust,31-Oct-15,Independent Sector,Offender Health - Risley,DR MW HUSSAIN,15660604,"43,750.00",,0404HMPRISLEY1415
Department of Health,Bridgewater Community Healthcare NHS Foundation Trust,31-Oct-15,SrvcsRecd-FoundationTrust,Minor Injury Unit Widnes,WARRINGTON & HALTON HOSPITALS NHS FOUNDATION TRUST,15754580,"127,364.00",654404741,15354706
Department of Health,Bridgewater Community Healthcare NHS Foundation Trust,31-Oct-15,Services Received - NHSTs,CDS St Helens,ST HELENS & KNOWSLEY HOSPITALS NHS TRUST,15754690,"43,184.50",654943996,16757142
Department of Health,Bridgewater Community Healthcare NHS Foundation Trust,31-Oct-15,Lease Rents,Pemberton Health Centre,COMMUNITY HEALTH PARTNERSHIPS,15754758,"27,608.41",782562113,50387501
Department of Health,Bridgewater Community Healthcare NHS Foundation Trust,31-Oct-15,Lease Rents,Widnes HCRC,COMMUNITY HEALTH PARTNERSHIPS,15754773,"35,224.45",782562113,50387505
Department of Health,Bridgewater Community Healthcare NHS Foundation Trust,31-Oct-15,Lease Rents,Bath Street,COMMUNITY HEALTH PARTNERSHIPS,15754801,"43,289.93",782562113,50387512
Department of Health,Bridgewater Community Healthcare NHS Foundation Trust,31-Oct-15,Lease Rents,Child Development Centre Orford,COMMUNITY HEALTH PARTNERSHIPS,15754841,"39,331.63",782562113,50387523
Department of Health,Bridgewater Community Healthcare NHS Foundation Trust,31-Oct-15,Lease Rents,Claire House,COMMUNITY HEALTH PARTNERSHIPS,15754866,"28,233.76",782562113,50387529
Department of Health,Bridgewater Community Healthcare NHS Foundation Trust,31-Oct-15,Lease Rents,Pemberton Health Centre,COMMUNITY HEALTH PARTNERSHIPS,15754891,"27,608.41",782562113,50387535
Department of Health,Bridgewater Community Healthcare NHS Foundation Trust,31-Oct-15,Lease Rents,Widnes HCRC,COMMUNITY HEALTH PARTNERSHIPS,15754903,"35,224.45",782562113,50387540
Department of Health,Bridgewater Community Healthcare NHS Foundation Trust,31-Oct-15,Lease Rents,Chandler House,COMMUNITY HEALTH PARTNERSHIPS,15754915,"36,962.02",782562113,50387541
Department of Health,Bridgewater Community Healthcare NHS Foundation Trust,31-Oct-15,Rent,Computing,WIGAN COUNCIL,15778531,"90,128.70",,71225304705
Department of Health,Bridgewater Community Healthcare NHS Foundation Trust,31-Oct-15,SrvcsRecd-FoundationTrust,HM Prison Healthcare,GREATER MANCHESTER WEST MENTAL HEALTH NHS FOUNDATION TRUST,15778639,"212,152.26",654929594,20708
Department of Health,Bridgewater Community Healthcare NHS Foundation Trust,31-Oct-15,Lease Rents,Newton Community Hospital,COMMUNITY HEALTH PARTNERSHIPS,15801835,"93,618.55",782562113,50387498
Department of Health,Bridgewater Community Healthcare NHS Foundation Trust,31-Oct-15,Lease Rents,Platt Bridge Community HC,COMMUNITY HEALTH PARTNERSHIPS,15801853,"60,466.44",782562113,50387503
Department of Health,Bridgewater Community Healthcare NHS Foundation Trust,31-Oct-15,Lease Rents,Boston House,COMMUNITY HEALTH PARTNERSHIPS,15801870,"55,499.36",782562113,50387524
Department of Health,Bridgewater Community Healthcare NHS Foundation Trust,31-Oct-15,Lease Rents,Leigh Infirmary,COMMUNITY HEALTH PARTNERSHIPS,15801884,"80,250.04",782562113,50387526
Department of Health,Bridgewater Community Healthcare NHS Foundation Trust,31-Oct-15,Lease Rents,Newton Community Hospital,COMMUNITY HEALTH PARTNERSHIPS,15801898,"93,618.55",782562113,50387532
Department of Health,Bridgewater Community Healthcare NHS Foundation Trust,31-Oct-15,Lease Rents,Platt Bridge Community HC,COMMUNITY HEALTH PARTNERSHIPS,15801911,"60,466.44",782562113,50387538
Department of Health,Bridgewater Community Healthcare NHS Foundation Trust,31-Oct-15,Services Received - NHSTs,Warrington- Dental,EAST CHESHIRE NHS TRUST,15832711,"34,674.70",654919892,17484232
Department of Health,Bridgewater Community Healthcare NHS Foundation Trust,31-Oct-15,Other Clinical Costs,Out of Hours Medical Services,CO-OPERATIVE PHARMACY,15867864,"28,325.00",,MI00002035
Department of Health,Bridgewater Community Healthcare NHS Foundation Trust,31-Oct-15,Lease Rents,Chandler House,COMMUNITY HEALTH PARTNERSHIPS,15946470,"46,562.02",782562113,50387507
Department of Health,Bridgewater Community Healthcare NHS Foundation Trust,31-Oct-15,SrvcsRecd-FoundationTrust,Midwifery Halton,WARRINGTON & HALTON HOSPITALS NHS FOUNDATION TRUST,15946493,"32,500.00",654404741,15354938
Department of Health,Bridgewater Community Healthcare NHS Foundation Trust,31-Oct-15,Services Received - NHSTs,CDS St Helens,ST HELENS & KNOWSLEY HOSPITALS NHS TRUST,15967632,"64,776.00",654943996,16755881
Department of Health,Bridgewater Community Healthcare NHS Foundation Trust,31-Oct-15,Drugs,Medicines Management,NHS BUSINESS SERVICES AUTHORITY,15967784,"85,850.81",654434729,1000045421
Department of Health,Bridgewater Community Healthcare NHS Foundation Trust,31-Oct-15,SrvcsRecd-FoundationTrust,Sexual Health Trafford,CENTRAL MANCHESTER UNIVERSITY HOSPITALS NHS FOUNDATION TRUST,15967933,"38,395.00",654415538,6210044451
Department of Health,Bridgewater Community Healthcare NHS Foundation Trust,31-Oct-15,Contr Other External,Minor Injury Unit StH,MILLENIUM CENTRE,15967989,"83,500.00",,BWCHC019
Department of Health,Bridgewater Community Healthcare NHS Foundation Trust,31-Oct-15,Contr Other External,Minor Injury Unit StH,MILLENIUM CENTRE,15968002,"90,000.00",,BWCHC018
Department of Health,Bridgewater Community Healthcare NHS Foundation Trust,31-Oct-15,Computer Network Costs,Computing,NHS GREATER MANCHESTER CSU,16069546,"200,000.00",,7300002631
